bitfinex/quotes_BTCUSD_20241010
["timestamp","ask_amount","ask_price","bid_price","bid_amount"]
[1728571673464,0.24637217,60690.0,60689.0,0.32561164]
[1728571673702,0.003636,60694.0,60692.0,0.164764]
[1728571673939,0.001636,60694.0,60693.0,0.32560064]
[1728571674164,0.001636,60694.0,60693.0,0.37624454]
[1728571675415,0.003636,60694.0,60693.0,0.16083764]
[1728571675657,0.001636,60694.0,60693.0,0.17483764]
[1728571675861,0.001636,60694.0,60693.0,0.33960064]
[1728571676120,0.001636,60694.0,60693.0,0.32560064]
[1728571676361,0.001636,60694.0,60693.0,0.33960064]
[1728571676603,0.001636,60694.0,60693.0,0.57197281]
[1728571676838,0.001636,60694.0,60693.0,0.33860064]
[1728571678026,0.001636,60694.0,60693.0,0.33960064]
[1728571678268,0.001636,60694.0,60693.0,0.32560064]
[1728571678491,0.001636,60694.0,60693.0,0.33960064]
[1728571678732,0.001636,60694.0,60693.0,0.32560064]
[1728571679239,0.001636,60694.0,60693.0,0.35160064]
[1728571679471,0.001636,60694.0,60693.0,0.33760064]
[1728571679702,0.001636,60694.0,60693.0,0.33960064]
[1728571680165,0.001636,60694.0,60693.0,0.35360064]
[1728571680415,0.001636,60694.0,60693.0,0.18883764]
[1728571680673,0.001636,60694.0,60693.0,0.33960064]
[1728571680928,0.001636,60694.0,60693.0,0.35360064]
[1728571681851,0.001636,60694.0,60693.0,0.33960064]
[1728571682826,0.001636,60694.0,60693.0,0.35160064]
[1728571683164,0.001636,60694.0,60693.0,0.33960064]
[1728571683686,0.001636,60694.0,60693.0,0.98949426]
[1728571683923,0.001636,60694.0,60693.0,0.74312209]
[1728571684113,0.001636,60700.0,60699.0,0.47596845]
[1728571684369,0.001636,60700.0,60699.0,0.63680609]
[1728571685065,0.001636,60700.0,60699.0,0.61380609]
[1728571685306,0.001636,60700.0,60699.0,0.63680609]
[1728571686276,0.001636,60700.0,60699.0,0.65080609]
[1728571686528,0.001636,60700.0,60699.0,0.63680609]
[1728571686744,0.001636,60700.0,60699.0,0.65080609]
[1728571686961,0.001636,60700.0,60699.0,0.66480609]
[1728571687200,0.001636,60700.0,60699.0,0.65080609]
[1728571687420,0.001636,60700.0,60699.0,0.43958464]
[1728571687878,0.001636,60700.0,60699.0,0.33958464]
[1728571688145,0.16638,60700.0,60699.0,0.17483764]
[1728571688389,0.16838,60700.0,60699.0,0.16083764]
[1728571688627,0.001636,60700.0,60699.0,0.17483764]
[1728571688876,0.001636,60700.0,60699.0,0.33958464]
[1728571689093,0.001636,60700.0,60699.0,0.35358464]
[1728571689332,0.001636,60700.0,60699.0,0.32558464]
[1728571689742,0.001636,60700.0,60699.0,0.35258464]
[1728571689972,0.001636,60700.0,60699.0,0.33858464]
[1728571690198,0.194,60710.0,60709.0,0.16472]
[1728571690416,0.194,60710.0,60709.0,0.32555764]
[1728571690678,0.196,60710.0,60709.0,0.32555764]
[1728571690905,0.002,60702.0,60699.0,0.014]
[1728571691150,0.329459,60706.0,60699.0,0.014]
[1728571691151,0.166744,60700.0,60699.0,0.014]
[1728571691617,0.081,60701.0,60699.0,0.014]
[1728571691618,0.081,60701.0,60699.0,0.028]
[1728571691824,0.083,60701.0,60700.0,0.16083764]
[1728571692042,0.247741,60701.0,60700.0,0.16083764]
[1728571692947,0.083,60701.0,60700.0,0.16083764]
[1728571693169,0.08083335,60701.0,60700.0,0.33458164]
[1728571693422,0.329449,60708.0,60700.0,0.16083764]
[1728571693423,0.002,60706.0,60700.0,0.16083764]
[1728571693630,0.002,60709.0,60704.0,0.329465]
[1728571693879,0.41108917,60711.0,60706.0,0.164728]
[1728571693880,0.002,60707.0,60706.0,0.164728]
[1728571694135,0.002,60707.0,60696.0,0.24637217]
[1728571694136,0.002,60703.0,60696.0,0.24637217]
[1728571694339,0.166737,60703.0,60696.0,0.24637217]
[1728571694578,0.007,60705.0,60698.0,0.329495]
[1728571694806,0.16674,60702.0,60700.0,0.008]
[1728571695036,0.16674,60702.0,60701.0,0.16083764]
[1728571696175,0.24884,60702.0,60701.0,0.16083764]
[1728571696411,0.0841,60702.0,60701.0,0.16083764]
[1728571697298,0.0821,60702.0,60701.0,0.17083764]
[1728571697786,0.248839,60702.0,60701.0,0.17083764]
[1728571698289,0.248839,60702.0,60701.0,0.17983764]
[1728571698739,0.55683498,60702.0,60701.0,0.019]
[1728571698971,0.55353755,60702.0,60701.0,0.019]
[1728571699178,0.443439,60702.0,60701.0,0.019]
[1728571699400,0.171763,60693.0,60681.0,0.24637217]
[1728571699702,0.36328188,60693.0,60682.0,0.329585]
[1728571699950,0.36328188,60693.0,60681.0,0.24637217]
[1728571699951,0.63678445,60693.0,60681.0,0.24637217]
[1728571700198,0.63678445,60693.0,60688.0,0.001634]
[1728571701823,0.63678445,60693.0,60692.0,0.0849]
[1728571702108,0.63678445,60693.0,60692.0,0.0869]
[1728571702345,0.63678445,60693.0,60692.0,0.0839]
[1728571702611,0.63678445,60693.0,60692.0,0.0849]
[1728571704264,0.448563,60693.0,60692.0,0.0849]
[1728571704493,0.448563,60693.0,60692.0,0.086534]
[1728571707749,0.441563,60693.0,60692.0,0.086534]
[1728571707989,0.007,60698.0,60692.0,0.24737164]
[1728571708214,0.007,60698.0,60696.0,0.164754]
[1728571708420,0.005,60696.0,60693.0,0.49036064]
[1728571708641,0.005,60696.0,60694.0,0.16476]
[1728571708893,0.002,60695.0,60694.0,0.16083764]
[1728571709110,0.329501,60698.0,60695.0,0.164756]
[1728571709111,0.008,60698.0,60695.0,0.164756]
[1728571709343,0.17275,60698.0,60695.0,0.164756]
[1728571709578,0.008,60698.0,60695.0,0.164757]
[1728571710055,0.59898145,60706.0,60695.0,0.164757]
[1728571710056,0.005,60704.0,60696.0,0.16083764]
[1728571710280,0.1895,60708.0,60702.0,0.164739]
[1728571710505,0.007817,60710.0,60702.0,0.32557664]
[1728571710724,0.172535,60710.0,60702.0,0.32557664]
[1728571710951,0.007817,60710.0,60702.0,0.32557664]
[1728571711171,0.000817,60710.0,60702.0,0.32557664]
[1728571711424,0.002,60709.0,60702.0,0.32557664]
[1728571711643,0.002,60708.0,60702.0,0.32557664]
[1728571712111,0.170535,60710.0,60702.0,0.32557664]
[1728571712112,0.002,60707.0,60702.0,0.32557664]
[1728571712345,0.000817,60710.0,60702.0,0.32557664]
[1728571712608,0.000817,60710.0,60702.0,0.33957664]
[1728571712809,0.000817,60710.0,60702.0,0.42557664]
[1728571713022,0.000817,60710.0,60702.0,0.45357664]
[1728571713023,0.001817,60703.0,60702.0,0.45357664]
[1728571713719,0.000817,60703.0,60702.0,0.43957664]
[1728571713962,0.001817,60703.0,60702.0,0.45357664]
[1728571714224,0.001817,60703.0,60702.0,0.47657664]
[1728571714455,0.001817,60703.0,60702.0,0.46257664]
[1728571714678,0.001817,60703.0,60702.0,0.47657664]
[1728571714886,0.001817,60703.0,60702.0,0.46257664]
[1728571715325,0.000817,60703.0,60702.0,0.46257664]
[1728571715765,0.001817,60703.0,60702.0,0.47657664]
[1728571717600,0.000817,60710.0,60709.0,0.16472]
[1728571717849,0.000817,60710.0,60709.0,0.51377909]
[1728571718139,0.000817,60710.0,60709.0,0.16083764]
[1728571718307,0.000817,60710.0,60702.0,0.028]
[1728571718308,0.002817,60710.0,60702.0,0.028]
[1728571718572,0.166736,60703.0,60702.0,0.18883764]
[1728571718788,0.002,60698.0,60695.0,0.24637217]
[1728571719036,0.002,60698.0,60697.0,0.16247164]
[1728571719037,0.16675,60698.0,60697.0,0.16247164]
[1728571719466,0.36326888,60698.0,60697.0,0.001634]
[1728571719682,0.61957145,60698.0,60697.0,0.001634]
[1728571721562,0.61957145,60698.0,60697.0,0.007634]
[1728571721776,0.61957145,60698.0,60697.0,0.006634]
[1728571722237,0.62357145,60698.0,60697.0,0.001634]
[1728571722681,0.62757145,60698.0,60697.0,0.001634]
[1728571723784,1.13743715,60698.0,60697.0,0.001634]
[1728571724007,1.14243715,60698.0,60697.0,0.001634]
[1728571724446,1.13843715,60698.0,60697.0,0.001634]
[1728571724674,1.13443715,60698.0,60697.0,0.001634]
[1728571724900,0.79140909,60698.0,60697.0,0.001634]
[1728571725387,0.97663054,60698.0,60697.0,0.001634]
[1728571725603,1.07763054,60698.0,60697.0,0.001634]
[1728571725834,1.08163054,60698.0,60697.0,0.001634]
[1728571726062,1.08363054,60698.0,60697.0,0.001634]
[1728571726289,0.536363,60693.0,60692.0,0.083534]
[1728571726498,0.88542209,60693.0,60692.0,0.083534]
[1728571726998,0.88742209,60693.0,60692.0,0.083534]
[1728571727519,0.356474,60689.0,60688.0,0.001634]
[1728571727770,0.88383309,60689.0,60688.0,0.001634]
[1728571728022,0.88383309,60689.0,60674.0,0.24637217]
[1728571728023,0.007,60675.0,60674.0,0.24637217]
[1728571728299,0.62587109,60675.0,60674.0,0.24637217]
[1728571728744,0.171839,60665.0,60653.0,0.329739]
[1728571728964,0.171839,60665.0,60657.0,0.16486]
[1728571728965,0.17513643,60665.0,60657.0,0.16486]
[1728571729255,0.166853,60660.0,60657.0,0.16486]
[1728571729498,0.005,60661.0,60650.0,0.001634]
[1728571729499,0.002,60657.0,60650.0,0.001634]
[1728571729735,0.0819,60664.0,60650.0,0.001634]
[1728571729736,0.166877,60651.0,60650.0,0.001634]
[1728571729959,0.17017443,60651.0,60650.0,0.001634]
[1728571730418,0.166877,60651.0,60650.0,0.001634]
[1728571730933,0.24586915,60651.0,60650.0,0.001634]
[1728571731170,0.36717443,60651.0,60650.0,0.001634]
[1728571731410,0.363877,60651.0,60650.0,0.001634]
[1728571732362,0.366877,60651.0,60650.0,0.001634]
[1728571732590,0.367877,60651.0,60650.0,0.009634]
[1728571732811,0.363877,60651.0,60650.0,0.001634]
[1728571733064,0.363877,60651.0,60650.0,0.002634]
[1728571733298,0.363877,60651.0,60650.0,0.004634]
[1728571733528,0.363877,60651.0,60650.0,0.002634]
[1728571733529,0.52468361,60651.0,60650.0,0.002634]
[1728571733770,0.52468361,60651.0,60650.0,0.005634]
[1728571734008,0.363877,60651.0,60650.0,0.005634]
[1728571734246,0.363877,60651.0,60650.0,0.002634]
[1728571734475,0.363877,60651.0,60650.0,0.001634]
[1728571734709,0.363877,60651.0,60650.0,0.003634]
[1728571735156,0.363877,60651.0,60650.0,0.001634]
[1728571735399,0.363877,60651.0,60650.0,0.002634]
[1728571735877,0.363877,60651.0,60650.0,0.004634]
[1728571736340,0.363877,60651.0,60650.0,0.003634]
[1728571737041,0.363877,60651.0,60650.0,0.006634]
[1728571737756,0.363877,60651.0,60650.0,0.003634]
[1728571737971,0.363877,60651.0,60650.0,0.001634]
[1728571738458,0.363877,60651.0,60650.0,0.004634]
[1728571738459,1.07496484,60651.0,60650.0,0.004634]
[1728571738691,1.15276484,60651.0,60650.0,0.004634]
[1728571738927,0.87032125,60651.0,60650.0,0.001634]
[1728571739176,0.70748361,60651.0,60650.0,0.003634]
[1728571739424,0.87032125,60651.0,60650.0,0.003634]
[1728571739656,0.87032125,60651.0,60650.0,0.001634]
[1728571739657,0.86832125,60651.0,60650.0,0.001634]
[1728571739885,0.86832125,60651.0,60650.0,0.005634]
[1728571740081,0.87832125,60651.0,60650.0,0.006634]
[1728571740362,1.18576484,60651.0,60650.0,0.006634]
[1728571740616,1.18576484,60651.0,60645.0,0.00255]
[1728571740617,0.557391,60646.0,60645.0,0.00255]
[1728571740840,1.16147884,60646.0,60645.0,0.00255]
[1728571741400,1.18447884,60646.0,60645.0,0.00255]
[1728571741643,0.17691,60639.0,60638.0,0.001634]
[1728571741868,0.72548866,60639.0,60638.0,0.001634]
[1728571742119,0.72219123,60639.0,60638.0,0.001634]
[1728571742354,0.81504422,60639.0,60638.0,0.001634]
[1728571742600,0.81304422,60639.0,60638.0,0.001634]
[1728571742842,0.81504422,60639.0,60638.0,0.001634]
[1728571743328,0.55935359,60639.0,60638.0,0.001634]
[1728571743576,0.56135359,60639.0,60638.0,0.001634]
[1728571744045,0.56335359,60639.0,60638.0,0.001634]
[1728571744528,0.55835359,60639.0,60638.0,0.001634]
[1728571745025,0.56335359,60639.0,60638.0,0.001634]
[1728571745241,0.56177084,60639.0,60638.0,0.001634]
[1728571745482,0.65807063,60639.0,60638.0,0.001634]
[1728571746179,0.81890827,60639.0,60638.0,0.001634]
[1728571746679,0.81890827,60639.0,60627.0,0.003934]
[1728571746680,0.01241725,60632.0,60627.0,0.003934]
[1728571746916,0.01041725,60628.0,60627.0,0.25030617]
[1728571747189,0.62193591,60628.0,60627.0,0.25030617]
[1728571747442,0.61863848,60628.0,60627.0,0.003934]
[1728571748158,1.00308207,60628.0,60627.0,0.003934]
[1728571748402,0.01041725,60620.0,60619.0,0.001634]
[1728571748632,0.88746048,60620.0,60619.0,0.001634]
[1728571748855,1.04800368,60620.0,60619.0,0.001634]
[1728571749343,0.60475348,60620.0,60619.0,0.001634]
[1728571749578,0.17011584,60620.0,60619.0,0.001634]
[1728571749833,0.18441327,60620.0,60619.0,0.002634]
[1728571750333,0.18111584,60620.0,60619.0,0.002634]
[1728571750570,0.18441327,60620.0,60619.0,0.002634]
[1728571750804,0.18541327,60620.0,60619.0,0.007634]
[1728571751055,0.17441327,60620.0,60619.0,0.006634]
[1728571751286,0.18341327,60620.0,60619.0,0.006634]
[1728571751740,0.17441327,60620.0,60619.0,0.006634]
[1728571752287,0.17541327,60620.0,60619.0,0.008634]
[1728571753230,0.002,60620.0,60619.0,0.008634]
[1728571753463,0.00473659,60623.0,60622.0,0.164956]
[1728571753702,0.00473659,60621.0,60620.0,0.16496]
[1728571753926,0.00041725,60626.0,60622.0,0.164956]
[1728571753927,0.00473659,60624.0,60622.0,0.164956]
[1728571754166,0.00473659,60624.0,60621.0,0.329916]
[1728571754627,0.00329743,60627.0,60621.0,0.329916]
[1728571754628,0.00515384,60623.0,60622.0,0.164956]
[1728571754859,0.00515384,60623.0,60622.0,0.166956]
[1728571755108,0.51837589,60629.0,60622.0,0.166956]
[1728571755109,0.00041725,60629.0,60624.0,0.329901]
[1728571755378,0.24678942,60627.0,60626.0,0.164944]
[1728571755637,0.00041725,60620.0,60619.0,0.001634]
[1728571756147,0.00041725,60620.0,60619.0,0.166598]
[1728571757117,0.329901,60625.0,60622.0,0.164956]
[1728571757118,0.00515384,60625.0,60622.0,0.164956]
[1728571757365,0.25152601,60628.0,60623.0,0.16083764]
[1728571757592,0.24678942,60628.0,60625.0,0.329895]
[1728571757846,0.00041725,60628.0,60627.0,0.164943]
[1728571758088,0.00615384,60629.0,60628.0,0.16494]
[1728571758529,0.00041725,60629.0,60628.0,0.16494]
[1728571759242,0.00515384,60629.0,60628.0,0.16494]
[1728571759908,0.00041725,60629.0,60628.0,0.16494]
[1728571760171,0.00515384,60629.0,60628.0,0.16494]
[1728571760417,0.00041725,60629.0,60628.0,0.32577764]
[1728571760638,0.00041725,60629.0,60628.0,0.32777764]
[1728571761323,0.00041725,60629.0,60628.0,0.32977764]
[1728571762035,0.35565965,60640.0,60634.0,0.164923]
[1728571762036,0.00473659,60635.0,60634.0,0.164923]
[1728571762279,0.00473659,60635.0,60628.0,0.16483764]
[1728571762280,0.00041725,60636.0,60629.0,0.16083764]
[1728571762524,0.00473659,60634.0,60633.0,0.164926]
[1728571762754,0.00515384,60635.0,60634.0,0.164921]
[1728571762992,0.35565965,60640.0,60639.0,0.16491]
[1728571762993,0.02584065,60640.0,60639.0,0.16491]
[1728571763207,0.00473659,60642.0,60641.0,0.164904]
[1728571763470,0.00473659,60642.0,60641.0,0.32574164]
[1728571763967,0.000817,60646.0,60643.0,0.164899]
[1728571763968,0.00473659,60645.0,60643.0,0.164899]
[1728571764187,0.00123425,60646.0,60643.0,0.164899]
[1728571764188,0.000817,60646.0,60645.0,0.164894]
[1728571764431,0.000817,60646.0,60645.0,0.32902923]
[1728571764672,0.000817,60646.0,60645.0,0.54223164]
[1728571764952,0.24637217,60656.0,60655.0,0.164866]
[1728571765165,0.00515384,60662.0,60655.0,0.16083764]
[1728571765428,0.00041725,60662.0,60661.0,0.16485]
[1728571765656,0.00041725,60662.0,60661.0,0.32568764]
[1728571765927,0.00041725,60664.0,60661.0,0.16083764]
[1728571766251,0.32964,60673.0,60659.0,0.329711]
[1728571766252,0.00473659,60668.0,60662.0,0.20332093]
[1728571766428,0.00041725,60663.0,60662.0,0.52971734]
[1728571766644,0.00041725,60663.0,60662.0,0.0391867]
[1728571766863,0.16526225,60663.0,60662.0,0.0391867]
[1728571767117,0.00041725,60663.0,60662.0,0.0391867]
[1728571767348,0.00041725,60658.0,60657.0,0.164859]
[1728571767609,0.00041725,60659.0,60658.0,0.164858]
[1728571767855,0.00041725,60662.0,60659.0,0.329706]
[1728571768105,0.00041725,60662.0,60658.0,0.16083764]
[1728571768106,0.00041725,60662.0,60661.0,0.16485]
[1728571768350,0.00041725,60662.0,60660.0,0.16083764]
[1728571768351,0.00041725,60661.0,60660.0,0.16083764]
[1728571768598,0.00087511,60663.0,60662.0,0.004]
[1728571768847,0.16572011,60663.0,60662.0,0.004]
[1728571769108,0.00087511,60663.0,60660.0,0.2098927]
[1728571769353,0.16485,60661.0,60660.0,0.16083764]
[1728571769593,0.164846,60663.0,60660.0,0.16083764]
[1728571769846,0.164848,60662.0,60660.0,0.16083764]
[1728571771102,0.16585,60661.0,60660.0,0.17183764]
[1728571771673,0.00903402,60663.0,60650.0,0.164879]
[1728571771914,0.00903402,60663.0,60651.0,0.16083764]
[1728571771915,0.164875,60652.0,60651.0,0.16083764]
[1728571772159,0.164867,60655.0,60651.0,0.164876]
[1728571772411,0.164867,60655.0,60647.0,0.24637217]
[1728571772660,0.00803402,60656.0,60651.0,0.164876]
[1728571772661,0.164869,60654.0,60651.0,0.164876]
[1728571772878,0.00329743,60655.0,60647.0,0.24637217]
[1728571773104,0.00329743,60655.0,60652.0,0.329746]
[1728571773355,0.16816443,60655.0,60650.0,0.16488]
[1728571773602,0.49790143,60655.0,60651.0,0.32571364]
[1728571773841,0.165868,60655.0,60652.0,0.164874]
[1728571774076,0.001,60655.0,60652.0,0.164873]
[1728571774307,0.00803402,60656.0,60651.0,0.16083764]
[1728571774539,0.00803402,60656.0,60651.0,0.32571464]
[1728571774778,0.165867,60655.0,60651.0,0.32571264]
[1728571775043,0.001,60655.0,60651.0,0.16083764]
[1728571775298,0.165868,60655.0,60651.0,0.32571464]
[1728571775548,0.001,60654.0,60651.0,0.17183764]
[1728571775799,0.165869,60655.0,60652.0,0.164874]
[1728571776032,0.164871,60654.0,60651.0,0.17083764]
[1728571776268,0.164871,60654.0,60651.0,0.34371464]
[1728571776493,0.329741,60654.0,60651.0,0.17883764]
[1728571776728,0.16487,60654.0,60651.0,0.33571364]
[1728571776947,0.00429743,60655.0,60652.0,0.009]
[1728571777139,0.16916643,60655.0,60652.0,0.009]
[1728571777417,0.00429743,60655.0,60652.0,0.009]
[1728571777609,0.164872,60653.0,60651.0,0.16247164]
[1728571777868,0.001,60654.0,60653.0,0.164872]
[1728571778093,0.001,60654.0,60651.0,0.33634864]
[1728571778323,0.16587,60654.0,60651.0,0.33634864]
[1728571778567,0.001,60654.0,60651.0,0.33634864]
[1728571778799,0.001,60654.0,60653.0,0.164872]
[1728571779062,0.001,60655.0,60654.0,0.164869]
[1728571779279,0.001,60655.0,60654.0,0.32570664]
[1728571779527,0.002,60655.0,60654.0,0.32570664]
[1728571779995,0.00473659,60659.0,60657.0,0.16486]
[1728571780246,0.00473659,60659.0,60658.0,0.16083764]
[1728571780462,0.16958959,60660.0,60658.0,0.16083764]
[1728571780942,0.00473659,60659.0,60658.0,0.16083764]
[1728571781386,0.00473659,60660.0,60659.0,0.164855]
[1728571781608,0.00473659,60659.0,60658.0,0.16083764]
[1728571781830,0.16959159,60659.0,60658.0,0.16083764]
[1728571782051,0.16959159,60659.0,60654.0,0.019]
[1728571782052,0.00473659,60656.0,60654.0,0.019]
[1728571782307,0.00473659,60656.0,60655.0,0.164866]
[1728571782553,0.00473659,60656.0,60654.0,0.19587684]
[1728571782816,0.00473659,60656.0,60654.0,0.36074584]
[1728571783303,0.00473659,60656.0,60654.0,0.16083764]
[1728571783550,0.00473659,60656.0,60654.0,0.32570664]
[1728571783988,0.00573659,60656.0,60655.0,0.009]
[1728571784218,0.00573659,60656.0,60654.0,0.16883764]
[1728571784459,0.00573659,60656.0,60655.0,0.164866]
[1728571785376,0.00473659,60656.0,60655.0,0.164866]
[1728571785593,0.00473659,60656.0,60655.0,0.172866]
[1728571785594,0.00573659,60656.0,60655.0,0.172866]
[1728571785790,0.001,60656.0,60655.0,0.172866]
[1728571785910,0.002,60656.0,60655.0,0.172866]
[1728571786137,0.001,60656.0,60655.0,0.172866]
[1728571786363,0.00673659,60656.0,60655.0,0.017]
[1728571786624,0.00673659,60656.0,60655.0,0.181866]
[1728571786820,0.00673659,60656.0,60655.0,0.017]
[1728571787101,0.002,60656.0,60655.0,0.34270364]
[1728571787351,0.002,60656.0,60655.0,0.42200364]
[1728571789393,0.002,60656.0,60655.0,0.34270364]
[1728571792233,0.002,60656.0,60655.0,0.34433764]
[1728571794318,0.002,60656.0,60655.0,0.46760105]
[1728571794562,0.000817,60663.0,60655.0,0.46760105]
[1728571794563,0.000817,60663.0,60662.0,0.164847]
[1728571794843,0.000817,60663.0,60662.0,0.51392232]
[1728571795776,0.000817,60663.0,60662.0,0.61392232]
[1728571796020,0.000817,60663.0,60662.0,0.63892232]
[1728571796255,0.000817,60663.0,60662.0,0.52444805]
[1728571796505,0.000817,60663.0,60662.0,0.52644805]
[1728571796975,0.001817,60663.0,60662.0,0.53244805]
[1728571797209,0.001817,60663.0,60662.0,0.53444805]
[1728571797457,0.000817,60663.0,60662.0,0.52644805]
[1728571797695,0.001817,60663.0,60662.0,0.54844805]
[1728571797920,0.001817,60663.0,60662.0,0.53844805]
[1728571798213,0.001817,60663.0,60662.0,0.55444805]
[1728571798454,0.24637217,60681.0,60680.0,0.164798]
[1728571798712,0.24637217,60681.0,60680.0,0.32563564]
[1728571798945,0.24637217,60681.0,60680.0,0.3581992]
[1728571799179,0.24637217,60681.0,60672.0,0.18823768]
[1728571799180,0.00473659,60680.0,60667.0,0.1]
[1728571799406,0.00473659,60680.0,60673.0,0.24637217]
[1728571799633,0.164805,60678.0,60674.0,0.34106715]
[1728571799856,0.164805,60678.0,60674.0,0.32565064]
[1728571800097,0.244813,60675.0,60671.0,0.164822]
[1728571800329,0.00473659,60676.0,60671.0,0.16083764]
[1728571800548,0.00473659,60676.0,60665.0,0.01541779]
[1728571800549,0.00473659,60676.0,60674.0,0.32963]
[1728571800773,0.00473659,60676.0,60675.0,0.2104844]
[1728571801254,0.00473659,60676.0,60675.0,0.3752964]
[1728571801503,0.00473659,60676.0,60675.0,0.2104844]
[1728571801975,0.00473659,60676.0,60669.0,0.34506766]
[1728571801976,0.00473659,60675.0,60669.0,0.01541366]
[1728571802213,0.164826,60670.0,60669.0,0.01541366]
[1728571802473,0.36616002,60670.0,60669.0,0.01541366]
[1728571802714,0.44296259,60670.0,60669.0,0.01541366]
[1728571803658,0.6037692,60670.0,60669.0,0.01541366]
[1728571803891,0.44796259,60670.0,60669.0,0.01541366]
[1728571804116,0.44796259,60670.0,60669.0,0.02141366]
[1728571804352,0.44996259,60670.0,60669.0,0.02141366]
[1728571804596,0.44996259,60670.0,60669.0,0.03141366]
[1728571804597,0.44796259,60670.0,60669.0,0.03141366]
[1728571804839,0.44796259,60670.0,60669.0,0.02141366]
[1728571805064,0.44296259,60670.0,60669.0,0.02241366]
[1728571805315,0.44796259,60670.0,60669.0,0.01641366]
[1728571805559,0.44796259,60670.0,60669.0,0.01841366]
[1728571805792,0.44796259,60670.0,60669.0,0.01741366]
[1728571806025,0.44796259,60670.0,60669.0,0.01541366]
[1728571806508,0.44796259,60670.0,60669.0,0.01741366]
[1728571806509,0.45796259,60670.0,60669.0,0.01741366]
[1728571806944,0.6187692,60670.0,60669.0,0.01741366]
[1728571807428,0.45796259,60670.0,60669.0,0.01741366]
[1728571808331,0.45796259,60670.0,60669.0,0.002]
[1728571808807,0.45296259,60670.0,60669.0,0.002]
[1728571810921,0.01473659,60670.0,60669.0,0.002]
[1728571811157,0.01473659,60670.0,60669.0,0.32766564]
[1728571811158,0.01,60670.0,60669.0,0.32766564]
[1728571811385,0.01,60670.0,60669.0,0.47680864]
[1728571811615,0.000817,60671.0,60670.0,0.164826]
[1728571811851,0.000817,60671.0,60670.0,0.32566364]
[1728571812327,0.000817,60671.0,60670.0,0.51390132]
[1728571812576,0.000817,60671.0,60670.0,0.32566364]
[1728571812794,0.001817,60671.0,60670.0,0.33966364]
[1728571813268,0.001817,60671.0,60670.0,0.32566364]
[1728571813269,0.000817,60671.0,60670.0,0.32566364]
[1728571813740,0.000817,60671.0,60670.0,0.33866364]
[1728571813965,0.000817,60671.0,60670.0,0.32566364]
[1728571814635,0.001817,60671.0,60670.0,0.36266364]
[1728571815128,0.000817,60671.0,60670.0,0.60476692]
[1728571815350,0.000817,60671.0,60670.0,0.39797231]
[1728571815817,0.001817,60671.0,60670.0,0.41197231]
[1728571816047,0.001817,60671.0,60670.0,0.42597231]
[1728571816511,0.000817,60671.0,60670.0,0.36266364]
[1728571816750,0.000817,60671.0,60670.0,0.34866364]
[1728571816989,0.000817,60671.0,60670.0,0.36266364]
[1728571817958,0.001817,60671.0,60670.0,0.37666364]
[1728571818188,0.001817,60671.0,60670.0,0.47692705]
[1728571818882,0.001817,60671.0,60670.0,0.47892705]
[1728571819123,0.001817,60671.0,60670.0,0.47692705]
[1728571819570,0.24637217,60682.0,60681.0,0.164796]
[1728571819826,0.24637217,60682.0,60681.0,0.69083736]
[1728571820057,0.00473659,60697.0,60687.0,0.329556]
[1728571820297,0.00473659,60702.0,60695.0,0.164758]
[1728571820554,0.000818,60703.0,60695.0,0.08824516]
[1728571820790,0.000818,60703.0,60697.0,0.164752]
[1728571821714,0.000818,60703.0,60697.0,0.32558964]
[1728571822428,0.000818,60703.0,60697.0,0.40218964]
[1728571822713,0.000818,60703.0,60697.0,0.42518964]
[1728571823209,0.000818,60703.0,60697.0,0.77182522]
[1728571823461,0.000818,60703.0,60697.0,0.52545305]
[1728571823709,0.000818,60703.0,60697.0,0.53745305]
[1728571823962,0.000818,60703.0,60697.0,0.78582522]
[1728571824168,0.000818,60703.0,60697.0,0.52745305]
[1728571824401,0.000818,60703.0,60697.0,0.61499842]
[1728571824653,0.000818,60703.0,60702.0,0.57010613]
[1728571824914,0.000818,60703.0,60702.0,0.73094377]
[1728571826338,0.000818,60703.0,60702.0,0.74494377]
[1728571826565,0.000818,60703.0,60702.0,0.74694377]
[1728571826803,0.000818,60703.0,60702.0,0.76173749]
[1728571827502,0.000818,60703.0,60702.0,0.76373749]
[1728571827736,0.000818,60703.0,60702.0,0.77573749]
[1728571827959,0.000818,60703.0,60702.0,0.45357664]
[1728571829850,0.000818,60703.0,60702.0,0.75894377]
[1728571830088,0.000818,60703.0,60702.0,0.76094377]
[1728571830360,0.000818,60703.0,60702.0,0.75894377]
[1728571831293,0.000818,60703.0,60702.0,0.76094377]
[1728571831769,0.000818,60703.0,60702.0,0.75894377]
[1728571832045,0.000818,60703.0,60702.0,0.77772034]
[1728571832791,0.000818,60707.0,60706.0,0.16699141]
[1728571833040,0.000818,60707.0,60706.0,0.73622642]
[1728571833340,0.000818,60707.0,60706.0,0.83093014]
[1728571833540,0.000818,60712.0,60711.0,0.57208113]
[1728571833781,0.000818,60715.0,60711.0,0.57208113]
[1728571833782,0.000818,60715.0,60714.0,0.28996941]
[1728571834040,0.000818,60715.0,60714.0,0.45410041]
[1728571834275,0.000817,60724.0,60719.0,0.02526341]
[1728571834514,0.000817,60724.0,60721.0,0.16695041]
[1728571834741,0.000817,60732.0,60730.0,0.164663]
[1728571834969,0.000817,60732.0,60730.0,0.32879338]
[1728571835195,0.000817,60732.0,60730.0,0.34184353]
[1728571835906,0.000817,60732.0,60730.0,0.44184353]
[1728571836145,0.000817,60732.0,60730.0,0.46710694]
[1728571836395,0.000817,60732.0,60730.0,0.48395632]
[1728571837126,0.000817,60732.0,60730.0,0.50648641]
[1728571837379,0.000817,60732.0,60730.0,0.46637362]
[1728571837606,0.000817,60732.0,60730.0,0.49137362]
[1728571837839,0.000817,60732.0,60730.0,0.77347734]
[1728571838090,0.000817,60732.0,60730.0,0.74847734]
[1728571838326,0.000817,60732.0,60730.0,0.76247734]
[1728571838808,0.000817,60732.0,60730.0,0.74547734]
[1728571839036,0.000817,60732.0,60730.0,0.75947734]
[1728571839293,0.000817,60732.0,60730.0,0.78247734]
[1728571839792,0.000817,60732.0,60730.0,0.47737362]
[1728571840025,0.000817,60732.0,60730.0,0.19118053]